fUST/lending_fUST_20241113
["ID","MTS","AMOUNT","RATE_DAILY","PERIOD"]
[342143901,1731505836716,-500.0,0.00019789,2]
[342143903,1731505836726,-500.0,0.00019789,2]
[342143905,1731505836735,-500.0,0.00019789,2]
[342143907,1731505836750,-500.0,0.00019789,2]
[342143909,1731505836760,-500.0,0.00019789,2]
[342143910,1731505836769,-500.0,0.00019789,2]
[342143912,1731505836779,-500.0,0.00019789,2]
[342143914,1731505836789,-503.76303978,0.00019789,2]
[342143915,1731505836798,-500.0,0.00019789,2]
[342143916,1731505836808,-500.0,0.00019789,2]
[342143918,1731505836817,-500.0,0.00019789,2]
[342143920,1731505836826,-500.0,0.00019789,2]
[342143922,1731505836836,-500.0,0.00019789,2]
[342143923,1731505836845,-500.0,0.00019789,2]
[342143925,1731505836855,-332.19987719,0.00019789,2]
[342143927,1731505836864,-895.05,0.00019789,2]
[342143928,1731505836874,-491.90001137,0.00019789,2]
[342143930,1731505836883,-500.0,0.00019789,2]
[342143931,1731505836892,-500.0,0.00019789,2]
[342143932,1731505836902,-640.27373291,0.00019789,2]
[342143933,1731505836911,-500.0,0.00019789,2]
[342143935,1731505836920,-500.0,0.00019789,2]
[342143937,1731505836929,-500.0,0.00019789,2]
[342143939,1731505836939,-1673.67,0.00019789,2]
[342143940,1731505836948,-500.0,0.00019789,2]
[342143941,1731505836957,-500.0,0.00019789,2]
[342143942,1731505836967,-500.0,0.00019789,2]
[342143943,1731505836976,-500.0,0.00019789,2]
[342143944,1731505836985,-529.16442031,0.00019789,2]
[342143945,1731505837000,-528.04267463,0.00019789,2]
[342143946,1731505837009,-500.0,0.00019789,2]
[342143947,1731505837019,-500.0,0.00019789,2]
[342143948,1731505837028,-500.0,0.00019789,2]
[342143949,1731505837037,-500.33311372,0.0001979,2]
[342143950,1731505837047,-500.0,0.0001979,2]
[342143951,1731505837056,-233.37723472,0.0001979,2]
[342143952,1731505837066,-500.0,0.0001979,2]
[342143953,1731505837076,-500.0,0.0001979,2]
[342143954,1731505837085,-502.11395824,0.0001979,2]
[342143955,1731505837095,-500.59424434,0.0001979,2]
[342143956,1731505837104,-500.45554005,0.0001979,2]
[342143957,1731505837113,-233.99417943,0.0001979,2]
[342143958,1731505837123,-652.72,0.0001979,2]
[342143959,1731505837132,-209.19697244,0.0001979,2]
[342143960,1731505837154,-290.80302756,0.0001979,2]
[342143961,1731505837164,-500.0,0.0001979,2]
[342143962,1731505837173,-588.00881754,0.0001979,2]
[342143963,1731505837182,-500.0,0.0001979,2]
[342143964,1731505837192,-500.0,0.0001979,2]
[342143965,1731505837201,-500.0,0.0001979,2]
[342143966,1731505837212,-502.06829217,0.0001979,2]
[342143967,1731505837222,-500.0,0.0001979,2]
[342143968,1731505837235,-511.85032232,0.0001979,2]
[342143969,1731505837248,-596.95317667,0.0001979,2]
[342143970,1731505837258,-516.53497083,0.0001979,2]
[342143971,1731505837267,-500.0,0.0001979,2]
[342143972,1731505837277,-500.0,0.0001979,2]
[342143973,1731505837286,-500.0,0.0001979,2]
[342143974,1731505837295,-506.48102587,0.0001979,2]
[342143975,1731505837304,-509.87930106,0.0001979,2]
[342143976,1731505837313,-505.24220456,0.0001979,2]
[342143977,1731505837323,-500.0,0.0001979,2]
[342143978,1731505837332,-500.0,0.0001979,2]
[342143979,1731505837341,-500.0,0.0001979,2]
[342143980,1731505837351,-500.0,0.0001979,2]
[342143981,1731505837360,-500.0,0.0001979,2]
[342143982,1731505837369,-568.46551624,0.0001979,2]
[342143983,1731505837378,-500.0,0.0001979,2]
[342143984,1731505837387,-500.0,0.0001979,2]
[342143985,1731505837397,-500.0,0.0001979,2]
[342143986,1731505837406,-500.0,0.0001979,2]
[342143987,1731505837415,-500.0,0.0001979,2]
[342143988,1731505837424,-500.0,0.0001979,2]
[342143989,1731505837434,-502.99696642,0.0001979,2]
[342143990,1731505837443,-509.20318392,0.0001979,2]
[342143991,1731505837452,-501.55836511,0.0001979,2]
[342143992,1731505837461,-501.28140558,0.0001979,2]
[342143993,1731505837471,-502.40569147,0.0001979,2]
[342143994,1731505837479,-500.0,0.0001979,2]
[342143995,1731505837489,-500.0,0.0001979,2]
[342143996,1731505837503,-530.39831245,0.0001979,2]
[342143997,1731505837512,-500.0,0.0001979,2]
[342143998,1731505837521,-500.0,0.0001979,2]
[342143999,1731505837530,-500.0,0.0001979,2]
[342144000,1731505837539,-500.0,0.0001979,2]
[342144001,1731505837548,-500.0,0.0001979,2]
[342144002,1731505837557,-500.0,0.0001979,2]
[342144003,1731505837566,-500.0,0.0001979,2]
[342144004,1731505837575,-500.0,0.00019791,2]
[342144005,1731505837584,-500.0,0.00019791,2]
[342144006,1731505837594,-500.0,0.00019791,2]
[342144007,1731505837604,-517.63415617,0.00019791,2]
[342144008,1731505837613,-151.98676507,0.00019791,2]
[342144009,1731505837622,-510.83283738,0.00019791,2]
[342144010,1731505837632,-575.83699646,0.00019791,2]
[342144011,1731505837641,-500.0,0.00019791,2]
[342144012,1731505837651,-500.0,0.00019791,2]
[342144013,1731505837661,-502.88539083,0.00019791,2]
[342144014,1731505837670,-500.0,0.00019791,2]
[342144015,1731505837679,-504.47257177,0.00019791,2]
[342144016,1731505837689,-500.0,0.00019791,2]
[342144017,1731505837698,-500.0,0.00019791,2]
[342144018,1731505837707,-500.0,0.00019791,2]
[342144019,1731505837716,-500.0,0.00019791,2]
[342144020,1731505837725,-500.0,0.00019791,2]
[342144021,1731505837734,-500.0,0.00019791,2]
[342144022,1731505837743,-332.705734,0.00019791,2]
[342144027,1731505838874,-450.995,0.00018577,2]
[342144028,1731505838884,-500.0,0.00019789,2]
[342144029,1731505838894,-167.294266,0.00019791,2]
[342144030,1731505838904,-250.85719186,0.00019791,2]
[342144031,1731505838916,-259.2109365,0.00019791,2]
[342144032,1731505838925,-508.05346931,0.00019791,2]
[342144033,1731505838934,-508.70297176,0.00019791,2]
[342144034,1731505838944,-502.11,0.00019791,2]
[342144035,1731505838955,-502.61275584,0.00019791,2]
[342144036,1731505838964,-501.93988864,0.00019791,2]
[342144037,1731505838973,-524.30897914,0.00019791,2]
[342144038,1731505838982,-502.51697217,0.00019791,2]
[342144039,1731505838992,-322.53100574,0.00019791,2]
[342144040,1731505839006,-589.64435653,0.00019791,2]
[342144041,1731505839016,-261.43829145,0.00019791,2]
[342144042,1731505839025,-1000.0,0.00019968,2]
[342144043,1731505839034,-1169.27083333,0.0002,2]
[342144044,1731505839043,-500.0,0.00020061,2]
[342144045,1731505839052,-483.5,0.00020061,2]
[342144046,1731505839062,-491.68269855,0.00020061,2]
[342144047,1731505839072,-500.0,0.00020062,2]
[342144048,1731505839082,-500.0,0.00020062,2]
[342144049,1731505839091,-500.0,0.00020062,2]
[342144050,1731505839100,-500.0,0.00020062,2]
[342144051,1731505839111,-5673.22,0.00020062,2]
[342144053,1731505839120,-611.18,0.00020062,2]
[342144055,1731505839130,-1115.23,0.00020062,2]
[342144057,1731505839140,-500.0,0.00020062,2]
[342144058,1731505839151,-500.0,0.00020062,2]
[342144059,1731505839161,-500.0,0.00020062,2]
[342144060,1731505839171,-1220.52,0.00020062,2]
[342144061,1731505839181,-825.93,0.00020062,2]
[342144062,1731505839193,-670.81,0.00020062,2]
[342144063,1731505839203,-500.0,0.00020062,2]
[342144064,1731505839216,-500.0,0.00020063,2]
[342144065,1731505839226,-500.0,0.00020063,2]
[342144066,1731505839239,-495.3762808,0.00020063,2]
[342144067,1731505839259,-407.05221649,0.00020063,2]
[342144068,1731505839271,-500.0,0.00020063,2]
[342144069,1731505839283,-400.36031556,0.00020063,2]
[342144070,1731505839293,-500.0,0.00020063,2]
[342144071,1731505839303,-500.0,0.00020063,2]
[342144072,1731505839314,-500.0,0.00020063,2]
[342144073,1731505839324,-500.0,0.00020063,2]
[342144074,1731505839335,-470.5,0.00020063,2]
[342144075,1731505839344,-500.0,0.00020063,2]
[342144076,1731505839355,-500.0,0.00020063,2]
[342144077,1731505839364,-518.67645391,0.00020063,2]
[342144078,1731505839373,-500.0,0.00020063,2]
[342144079,1731505839384,-500.0,0.00020063,2]
[342144080,1731505839394,-410.01498669,0.00020063,2]
[342144081,1731505839404,-500.0,0.00020063,2]
[342144082,1731505839414,-500.0,0.00020063,2]
[342144083,1731505839424,-500.0,0.00020063,2]
[342144084,1731505839433,-500.0,0.00020063,2]
[342144085,1731505839443,-500.0,0.00020063,2]
[342144086,1731505839453,-1633.29,0.00020063,2]
[342144087,1731505839463,-500.0,0.00020063,2]
[342144089,1731505839473,-500.0,0.00020063,2]
[342144091,1731505839482,-500.0,0.00020063,2]
[342144093,1731505839491,-500.0,0.00020063,2]
[342144094,1731505839509,-500.0,0.00020063,2]
[342144096,1731505839519,-500.0,0.00020063,2]
[342144098,1731505839529,-500.0,0.00020063,2]
[342144099,1731505839538,-500.0,0.00020063,2]
[342144100,1731505839547,-844.15,0.00020063,2]
[342144101,1731505839556,-656.09,0.00020063,2]
[342144102,1731505839566,-500.0,0.00020063,2]
[342144103,1731505839576,-500.0,0.00020063,2]
[342144104,1731505839585,-500.0,0.00020063,2]
[342144105,1731505839596,-500.0,0.00020063,2]
[342144106,1731505839605,-500.0,0.00020063,2]
[342144107,1731505839615,-500.0,0.00020063,2]
[342144108,1731505839624,-895.05,0.00020063,2]
[342144109,1731505839634,-500.0,0.00020063,2]
[342144111,1731505839643,-500.0,0.00020063,2]
[342144112,1731505839653,-1673.67,0.00020063,2]
[342144114,1731505839662,-500.0,0.00020063,2]
[342144116,1731505839672,-652.72,0.00020064,2]
[342144117,1731505839682,-500.0,0.00020064,2]
[342144118,1731505839692,-500.0,0.00020064,2]
[342144119,1731505839701,-500.0,0.00020064,2]
[342144120,1731505839710,-500.0,0.00020065,2]
[342144121,1731505839719,-500.0,0.00020065,2]
[342144122,1731505839728,-500.0,0.00020065,2]
[342144123,1731505839738,-500.0,0.00020065,2]
[342144124,1731505839752,-500.0,0.00020065,2]
[342144125,1731505839762,-500.0,0.00020336,2]
[342144126,1731505839772,-500.0,0.00020336,2]
[342144127,1731505839781,-500.0,0.00020336,2]
[342144128,1731505839790,-500.0,0.00020336,2]
[342144129,1731505839799,-5673.22,0.00020336,2]
[342144130,1731505839809,-611.18,0.00020336,2]
[342144131,1731505839819,-1115.23,0.00020336,2]
[342144132,1731505839828,-500.0,0.00020336,2]
[342144133,1731505839838,-500.0,0.00020336,2]
[342144134,1731505839847,-500.0,0.00020336,2]
[342144135,1731505839860,-1220.52,0.00020336,2]
[342144136,1731505839869,-825.93,0.00020336,2]
[342144137,1731505839879,-670.81,0.00020336,2]
[342144138,1731505839888,-500.0,0.00020336,2]
[342144139,1731505839898,-320.2,0.00020337,2]
[342144140,1731505839907,-500.0,0.00020337,2]
[342144141,1731505839917,-500.0,0.00020337,2]
[342144142,1731505839927,-500.0,0.00020337,2]
[342144143,1731505839936,-500.0,0.00020337,2]
[342144144,1731505839946,-500.0,0.00020337,2]
[342144146,1731505839958,-500.0,0.00020337,2]
[342144147,1731505839967,-500.0,0.00020337,2]
[342144148,1731505839977,-500.0,0.00020337,2]
[342144149,1731505839986,-500.0,0.00020337,2]
[342144150,1731505840002,-203.8219064,0.00020337,2]
[342144151,1731505840016,-1633.29,0.00020337,2]
[342144154,1731505840026,-500.0,0.00020337,2]
[342144157,1731505840035,-296.45404908,0.00020337,2]
[342144160,1731505840044,-500.0,0.00020337,2]
[342144162,1731505840054,-500.0,0.00020337,2]
[342144164,1731505840063,-500.0,0.00020337,2]
[342144166,1731505840073,-500.0,0.00020337,2]
[342144167,1731505840083,-627.44793494,0.00020337,2]
[342144169,1731505840092,-844.15,0.00020337,2]
[342144170,1731505840101,-656.09,0.00020337,2]
[342144171,1731505840111,-500.0,0.00020337,2]
[342144172,1731505840120,-500.0,0.00020337,2]
[342144173,1731505840129,-500.0,0.00020337,2]
[342144174,1731505840139,-500.0,0.00020337,2]
[342144175,1731505840148,-500.0,0.00020337,2]
[342144176,1731505840158,-895.05,0.00020337,2]
[342144177,1731505840168,-500.0,0.00020337,2]
[342144178,1731505840177,-500.0,0.00020337,2]
[342144179,1731505840186,-1673.67,0.00020337,2]
[342144180,1731505840196,-500.0,0.00020337,2]
[342144181,1731505840322,-652.72,0.00020338,2]
[342144182,1731505840333,-346.99948476,0.00020338,2]
[342144183,1731505840343,-500.0,0.00020338,2]
[342144184,1731505840352,-500.0,0.00020339,2]
[342144185,1731505840361,-500.0,0.00020339,2]
[342144186,1731505840371,-500.0,0.00020339,2]
[342144187,1731505840380,-500.0,0.00020339,2]
[342144188,1731505840390,-162.57594182,0.00020432,2]
[342144189,1731505840400,-412.06291979,0.00020509,2]
[342144190,1731505840409,-170.14050986,0.00020509,2]
[342144191,1731505840419,-233.97479495,0.00020509,2]
[342144192,1731505840428,-195.84746232,0.00020509,2]
[342144193,1731505840438,-188.82168347,0.00020509,2]
[342144194,1731505840448,-292.44972145,0.00020509,2]
[342144195,1731505840457,-63000.00000045,0.00020511,2]
[342144196,1731505840467,-1000.0,0.00020512,2]
[342144197,1731505840476,-500.0,0.00020573,2]
[342144198,1731505840485,-264.72119538,0.00020573,2]
[342144199,1731505840501,-501.47383952,0.00020573,2]
[342144200,1731505840511,-500.0,0.00020573,2]
[342144201,1731505840520,-500.0,0.0002061,2]
[342144202,1731505840530,-500.0,0.0002061,2]
[342144203,1731505840539,-500.0,0.0002061,2]
[342144204,1731505840549,-500.0,0.0002061,2]
[342144205,1731505840558,-5673.22,0.0002061,2]
[342144206,1731505840567,-611.18,0.0002061,2]
[342144207,1731505840577,-1115.23,0.0002061,2]
[342144208,1731505840586,-500.0,0.0002061,2]
[342144209,1731505840595,-500.0,0.0002061,2]
[342144210,1731505840605,-500.0,0.0002061,2]
[342144211,1731505840614,-1220.52,0.0002061,2]
[342144212,1731505840623,-825.93,0.0002061,2]
[342144213,1731505840632,-670.81,0.0002061,2]
[342144214,1731505840642,-500.0,0.0002061,2]
[342144215,1731505840651,-500.0,0.00020611,2]
[342144216,1731505840660,-500.0,0.00020611,2]
[342144217,1731505840669,-500.0,0.00020611,2]
[342144218,1731505840679,-500.0,0.00020611,2]
[342144219,1731505840689,-500.0,0.00020611,2]
[342144220,1731505840699,-500.0,0.00020611,2]
[342144221,1731505840709,-500.0,0.00020611,2]
[342144222,1731505840718,-500.0,0.00020611,2]
[342144223,1731505840728,-500.0,0.00020611,2]
[342144224,1731505840737,-500.0,0.00020611,2]
[342144225,1731505840751,-1633.29,0.00020611,2]
[342144226,1731505840760,-500.0,0.00020611,2]
[342144227,1731505840769,-500.0,0.00020611,2]
[342144228,1731505840778,-500.0,0.00020611,2]
[342144229,1731505840787,-500.0,0.00020611,2]
[342144230,1731505840797,-500.0,0.00020611,2]
[342144231,1731505840806,-844.15,0.00020611,2]
[342144232,1731505840816,-656.09,0.00020611,2]
[342144233,1731505840826,-500.0,0.00020611,2]
[342144234,1731505840836,-500.0,0.00020611,2]
[342144235,1731505840845,-500.0,0.00020611,2]
[342144236,1731505840855,-500.0,0.00020611,2]
[342144237,1731505840864,-500.0,0.00020611,2]
[342144238,1731505840874,-895.05,0.00020611,2]
[342144239,1731505840883,-500.0,0.00020611,2]
[342144240,1731505840893,-500.0,0.00020611,2]
[342144241,1731505840902,-1673.67,0.00020611,2]
[342144242,1731505840912,-500.0,0.00020611,2]
[342144243,1731505840922,-652.72,0.00020612,2]
[342144244,1731505840932,-500.0,0.00020612,2]
[342144245,1731505840941,-500.0,0.00020612,2]
[342144246,1731505840951,-500.0,0.00020613,2]
[342144247,1731505840961,-500.0,0.00020613,2]
[342144248,1731505840971,-368.95626644,0.00020613,2]
[342144249,1731505840980,-500.0,0.00020613,2]
[342144250,1731505840990,-187.351687,0.00020881,2]
[342144251,1731505841006,-182.623165,0.00020881,2]
[342144252,1731505841015,-500.0,0.00020884,2]
[342144253,1731505841025,-500.0,0.00020884,2]
[342144254,1731505841034,-500.0,0.00020884,2]
[342144255,1731505841043,-500.0,0.00020884,2]
[342144256,1731505841053,-5673.22,0.00020884,2]
[342144257,1731505841063,-611.18,0.00020884,2]
[342144258,1731505841072,-1115.23,0.00020884,2]
[342144259,1731505841081,-500.0,0.00020884,2]
[342144260,1731505841091,-500.0,0.00020884,2]
[342144261,1731505841100,-500.0,0.00020884,2]
[342144262,1731505841110,-1220.52,0.00020884,2]
[342144263,1731505841120,-825.93,0.00020884,2]
[342144264,1731505841129,-670.81,0.00020884,2]
[342144265,1731505841139,-500.0,0.00020884,2]
[342144266,1731505841149,-500.0,0.00020885,2]
[342144267,1731505841158,-500.0,0.00020885,2]
[342144268,1731505841167,-500.0,0.00020885,2]
[342144269,1731505841177,-500.0,0.00020885,2]
[342144270,1731505841187,-500.0,0.00020885,2]
[342144271,1731505841196,-500.0,0.00020885,2]
[342144272,1731505841207,-540.78696158,0.00020885,2]
[342144273,1731505841216,-500.0,0.00020885,2]
[342144274,1731505841226,-500.0,0.00020885,2]
[342144275,1731505841239,-500.0,0.00020885,2]
[342144276,1731505841253,-1633.29,0.00020885,2]
[342144277,1731505841262,-500.0,0.00020885,2]
[342144278,1731505841271,-500.0,0.00020885,2]
[342144279,1731505841283,-470.48530802,0.00020885,2]
[342144280,1731505841292,-500.0,0.00020885,2]
[342144281,1731505841302,-500.0,0.00020885,2]
[342144282,1731505841314,-844.15,0.00020885,2]
[342144283,1731505841324,-656.09,0.00020885,2]
[342144284,1731505841334,-500.0,0.00020885,2]
[342144285,1731505841343,-500.0,0.00020885,2]
[342144286,1731505841352,-500.0,0.00020885,2]
[342144287,1731505841361,-500.0,0.00020885,2]
[342144288,1731505841371,-500.0,0.00020885,2]
[342144289,1731505841381,-895.05,0.00020885,2]
[342144290,1731505841390,-500.0,0.00020885,2]
[342144291,1731505841401,-500.0,0.00020885,2]
[342144292,1731505841410,-1673.67,0.00020885,2]
[342144293,1731505841420,-500.0,0.00020885,2]
[342144294,1731505841429,-652.72,0.00020886,2]
[342144295,1731505841438,-500.0,0.00020886,2]
[342144297,1731505841448,-555.66156574,0.00020887,2]
[342144298,1731505841458,-500.0,0.00020887,2]
[342144300,1731505841467,-500.0,0.00020887,2]
[342144302,1731505841477,-491.7857315,0.00021,2]
[342144303,1731505841487,-1000.0,0.00021121,2]
[342144304,1731505841499,-187.351687,0.00021142,2]
[342144305,1731505841509,-182.623165,0.00021142,2]
[342144306,1731505841519,-500.0,0.00021158,2]
[342144307,1731505841528,-500.0,0.00021158,2]
[342144308,1731505841538,-500.0,0.00021158,2]
[342144309,1731505841547,-500.0,0.00021158,2]
[342144310,1731505841556,-5673.22,0.00021158,2]
[342144311,1731505841566,-611.18,0.00021158,2]
[342144313,1731505841576,-1115.23,0.00021158,2]
[342144315,1731505841585,-500.0,0.00021158,2]
[342144316,1731505841595,-246.99372737,0.00021158,2]
[342144317,1731505841604,-500.0,0.00021158,2]
[342144318,1731505841614,-1220.52,0.00021158,2]
[342144319,1731505841623,-825.93,0.00021158,2]
[342144320,1731505841632,-670.81,0.00021158,2]
[342144321,1731505841642,-500.0,0.00021158,2]
[342144322,1731505841651,-500.0,0.00021159,2]
[342144324,1731505841660,-500.0,0.00021159,2]
[342144326,1731505841670,-500.0,0.00021159,2]
[342144327,1731505841680,-500.0,0.00021159,2]
[342144328,1731505841689,-500.0,0.00021159,2]
[342144329,1731505841699,-500.0,0.00021159,2]
[342144330,1731505841710,-500.0,0.00021159,2]
[342144331,1731505841719,-500.0,0.00021159,2]
[342144332,1731505841728,-1633.29,0.00021159,2]
[342144333,1731505841738,-500.0,0.00021159,2]
[342144335,1731505841753,-500.0,0.00021159,2]
[342144337,1731505841763,-500.0,0.00021159,2]
[342144338,1731505841772,-500.0,0.00021159,2]
[342144340,1731505841782,-844.15,0.00021159,2]
[342144341,1731505841791,-656.09,0.00021159,2]
[342144342,1731505841801,-500.0,0.00021159,2]
[342144344,1731505841810,-500.0,0.00021159,2]
[342144346,1731505841819,-500.0,0.00021159,2]
[342144347,1731505841828,-500.0,0.00021159,2]
[342144348,1731505841838,-500.0,0.00021159,2]
[342144349,1731505841847,-895.05,0.00021159,2]
[342144350,1731505841857,-500.0,0.00021159,2]
[342144351,1731505841866,-500.0,0.00021159,2]
[342144352,1731505841875,-1673.67,0.00021159,2]
[342144354,1731505841884,-500.0,0.00021159,2]
[342144356,1731505841893,-652.72,0.0002116,2]
[342144357,1731505841902,-500.0,0.0002116,2]
[342144358,1731505841912,-500.0,0.0002116,2]
[342144359,1731505841922,-500.0,0.00021161,2]
[342144360,1731505841931,-500.0,0.00021161,2]
[342144361,1731505841941,-162.57594182,0.00021173,2]
[342144362,1731505841951,-1240.11806101,0.00021189,2]
[342144363,1731505841961,-501.63540827,0.00021234,2]
[342144364,1731505841970,-500.0,0.00021234,2]
[342144365,1731505841980,-500.0,0.00021234,2]
[342144366,1731505841989,-500.0,0.00021234,2]
[342144367,1731505842005,-312.48795366,0.00021234,2]
[342144368,1731505842015,-95697.09424557,0.00021235,2]
[342144369,1731505842024,-347.29956438,0.00021273,2]
[342144370,1731505842034,-500.0,0.00021273,2]
[342144371,1731505842046,-6000.0,0.00021335,2]
[342144372,1731505842056,-187.351687,0.00021403,2]
[342144373,1731505842065,-182.623165,0.00021403,2]
[342144374,1731505842075,-500.0,0.00021432,2]
[342144375,1731505842084,-500.0,0.00021432,2]
[342144376,1731505842094,-500.0,0.00021432,2]
[342144377,1731505842103,-5673.22,0.00021432,2]
[342144378,1731505842113,-611.18,0.00021432,2]
[342144379,1731505842122,-1115.23,0.00021432,2]
[342144380,1731505842131,-500.0,0.00021432,2]
[342144381,1731505842141,-500.0,0.00021432,2]
[342144382,1731505842151,-1220.52,0.00021432,2]
[342144383,1731505842160,-825.93,0.00021432,2]
[342144384,1731505842169,-670.81,0.00021432,2]
[342144385,1731505842179,-500.0,0.00021432,2]
[342144386,1731505842189,-500.0,0.00021433,2]
[342144387,1731505842198,-500.0,0.00021433,2]
[342144388,1731505842211,-500.0,0.00021433,2]
[342144389,1731505842224,-500.0,0.00021433,2]
[342144390,1731505842233,-500.0,0.00021433,2]
[342144391,1731505842243,-500.0,0.00021433,2]
[342144392,1731505842259,-500.0,0.00021433,2]
[342144393,1731505842268,-500.0,0.00021433,2]
[342144394,1731505842277,-1633.29,0.00021433,2]
[342144395,1731505842287,-500.0,0.00021433,2]
[342144396,1731505842296,-500.0,0.00021433,2]
[342144397,1731505842306,-500.0,0.00021433,2]
[342144398,1731505842315,-500.0,0.00021433,2]
[342144399,1731505842325,-844.15,0.00021433,2]
[342144400,1731505842335,-656.09,0.00021433,2]
[342144401,1731505842345,-500.0,0.00021433,2]
[342144402,1731505842355,-502.30864534,0.00021433,2]
[342144403,1731505842364,-500.0,0.00021433,2]
[342144404,1731505842374,-500.0,0.00021433,2]
[342144405,1731505842384,-500.0,0.00021433,2]
[342144406,1731505842393,-895.05,0.00021433,2]
[342144407,1731505842403,-500.0,0.00021433,2]
[342144408,1731505842412,-500.0,0.00021433,2]
[342144409,1731505842422,-1673.67,0.00021433,2]
[342144410,1731505842431,-500.0,0.00021433,2]
[342144411,1731505842441,-652.72,0.00021434,2]
[342144412,1731505842450,-500.0,0.00021434,2]
[342144413,1731505842459,-409.93249938,0.00021435,2]
[342144414,1731505842469,-500.0,0.00021435,2]
[342144415,1731505842478,-287.0,0.00021534,2]
[342144416,1731505842488,-187.351687,0.00021664,2]
[342144417,1731505842502,-182.623165,0.00021664,2]
[342144418,1731505842511,-4831.099449,0.000217,2]
[342144419,1731505842521,-500.0,0.00021706,2]
[342144420,1731505842531,-500.0,0.00021706,2]
[342144421,1731505842541,-500.0,0.00021706,2]
[342144422,1731505842551,-5673.22,0.00021706,2]
[342144423,1731505842560,-611.18,0.00021706,2]
[342144424,1731505842570,-1115.23,0.00021706,2]
[342144425,1731505842579,-500.0,0.00021706,2]
[342144426,1731505842589,-500.0,0.00021706,2]
[342144427,1731505842598,-1220.52,0.00021706,2]
[342144428,1731505842607,-825.93,0.00021706,2]
[342144429,1731505842617,-670.81,0.00021706,2]
[342144430,1731505842627,-500.0,0.00021706,2]
[342144431,1731505842637,-500.0,0.00021707,2]
[342144432,1731505842647,-500.0,0.00021707,2]
[342144433,1731505842656,-500.0,0.00021707,2]
[342144434,1731505842666,-500.0,0.00021707,2]
[342144435,1731505842675,-500.0,0.00021707,2]
[342144436,1731505842685,-500.0,0.00021707,2]
[342144437,1731505842695,-500.0,0.00021707,2]
[342144438,1731505842704,-500.0,0.00021707,2]
[342144439,1731505842714,-1633.29,0.00021707,2]
[342144440,1731505842724,-500.0,0.00021707,2]
[342144441,1731505842733,-500.0,0.00021707,2]
[342144442,1731505842743,-500.0,0.00021707,2]
[342144443,1731505842756,-500.0,0.00021707,2]
[342144444,1731505842764,-844.15,0.00021707,2]
[342144445,1731505842773,-656.09,0.00021707,2]
[342144446,1731505842782,-500.0,0.00021707,2]
[342144447,1731505842792,-500.0,0.00021707,2]
[342144448,1731505842801,-500.0,0.00021707,2]
[342144449,1731505842811,-500.0,0.00021707,2]
[342144450,1731505842821,-895.05,0.00021707,2]
[342144451,1731505842829,-500.0,0.00021707,2]
[342144452,1731505842838,-500.0,0.00021707,2]
[342144453,1731505842847,-1673.67,0.00021707,2]
[342144454,1731505842857,-500.0,0.00021707,2]
[342144455,1731505842866,-652.72,0.00021708,2]